bitfinex-derivatives/quotes_ETHF0:USTF0_20250130
["timestamp","ask_amount","ask_price","bid_price","bid_amount"]
[1738226596778,1.14667,3192.2,3192.1,1.14147]
[1738226602380,1.14667,3192.2,3192.1,0.62657]
[1738226608586,1.56648,3192.1,3191.8,1.29663771]
[1738226608786,0.62661,3191.9,3191.8,1.29663771]
[1738226610690,0.62665,3191.7,3191.6,3.3658033]
[1738226611390,1.67375,3191.7,3191.6,3.3658033]
[1738226611791,1.0471,3191.7,3191.6,3.3658033]
[1738226612693,0.5483,3191.7,3191.6,3.3658033]
[1738226613193,1.17495,3191.7,3191.6,3.3658033]
[1738226618589,1.17495,3191.7,3191.6,2.7391433]
[1738226619698,1.17495,3191.7,3191.6,3.3658133]
[1738226623997,1.17495,3191.7,3191.6,2.7391433]
[1738226624500,1.17495,3191.7,3191.6,3.3658133]
[1738226625298,0.62671,3191.4,3191.3,3.3658633]
[1738226625489,0.62671,3191.4,3191.3,2.7391433]
[1738226625690,0.62673,3191.3,3191.2,0.62673]
[1738226625897,1.13273,3191.3,3191.2,0.62673]
[1738226626897,0.6267,3191.6,3191.5,0.62667]
[1738226627102,0.6267,3191.6,3191.5,3.3658133]
[1738226628195,2.58382,3192.0,3191.5,2.7391433]
[1738226628196,1.0173,3192.0,3191.5,2.7391433]
[1738226628500,1.0173,3192.0,3191.4,3.7105]
[1738226628501,1.5235,3192.0,3191.8,0.62663]
[1738226628797,1.5235,3192.0,3191.3,2.7391433]
[1738226628992,0.62671,3191.4,3191.3,3.3658533]
[1738226630099,1.5235,3192.0,3191.3,5.9469433]
[1738226630299,0.62665,3191.8,3191.7,0.62662]
[1738226630498,0.62665,3191.8,3191.7,1.12992]
[1738226630796,3.2078,3192.1,3191.7,1.0288]
[1738226631100,3.83437,3192.1,3192.0,3.3657333]
[1738226636406,3.83437,3192.1,3192.0,2.7391433]
[1738226638690,0.62661,3191.9,3191.8,0.62662]
[1738226638895,3.2078,3192.1,3191.7,4.3945833]
[1738226638896,0.62663,3191.8,3191.7,4.3945833]
[1738226639603,0.62663,3191.8,3191.7,2.7391433]
[1738226639803,0.62669,3191.5,3191.4,4.3821433]
[1738226642200,0.5315,3191.8,3191.4,3.7554433]
[1738226642402,0.62664,3191.8,3191.7,3.3657933]
[1738226644098,0.5128,3191.9,3191.7,2.7391433]
[1738226644309,0.6266,3192.0,3191.9,0.62659]
[1738226644805,0.6266,3192.0,3191.9,1.63099]
[1738226646100,0.62655,3192.3,3192.0,0.62659]
[1738226646296,0.62655,3192.3,3192.2,0.62655]
[1738226648902,1.16323,3192.4,3192.3,0.62653]
[1738226649204,0.62653,3192.4,3192.3,0.62653]
[1738226652614,3.7275,3192.5,3192.1,5.9469433]
[1738226652802,3.2078,3192.5,3192.4,3.3656533]
[1738226653108,3.83429,3192.5,3192.4,3.3656533]
[1738226653306,3.2078,3192.5,3192.1,2.7391433]
[1738226653508,3.2078,3192.5,3192.4,2.7391433]
[1738226653707,3.2078,3192.5,3192.4,3.3656533]
[1738226653904,3.83422,3192.9,3192.7,0.62645]
[1738226654103,3.2078,3192.9,3192.7,3.3655933]
[1738226654913,3.83422,3192.9,3192.7,3.3655933]
[1738226655909,0.63113146,3192.8,3192.7,2.7391433]
[1738226656309,0.63113146,3192.8,3192.7,3.3655933]
[1738226657517,0.00470146,3192.8,3192.7,3.3655933]
[1738226657710,2.978,3193.6,3192.7,3.3655933]
[1738226657711,0.6263,3193.5,3193.4,0.62631]
[1738226657912,3.7065,3193.7,3193.4,2.7391433]
[1738226658109,0.5357,3193.6,3193.5,0.62628]
[1738226658306,0.5357,3193.6,3193.5,1.67858]
[1738226659216,1.14254146,3193.9,3193.8,0.62624]
[1738226659519,0.62624,3193.8,3193.7,3.3653833]
[1738226660312,0.62624,3193.8,3193.7,2.7391433]
[1738226661217,0.62624,3193.8,3193.7,3.3654033]
[1738226664020,0.62624,3193.8,3193.7,2.7391433]
[1738226664415,0.62624,3193.8,3193.7,3.3654033]
[1738226665435,1.14253146,3193.9,3193.8,0.62624]
[1738226665936,1.14253146,3193.9,3193.7,2.7391433]
[1738226665937,0.62624,3193.8,3193.7,3.3653933]
[1738226666137,0.62626,3193.7,3193.6,0.62627]
[1738226666332,1.16406,3193.7,3193.6,0.62627]
[1738226667435,0.6263,3193.5,3193.4,6.5732533]
[1738226667630,0.6263,3193.5,3193.4,3.2078]
[1738226668041,0.6263,3193.5,3193.4,3.83412]
[1738226668241,0.5378,3193.7,3193.4,3.2078]
[1738226668541,1.16407,3193.7,3193.6,0.62628]
[1738226668943,1.16407,3193.7,3193.6,0.4639848]
[1738226669142,0.5378,3193.7,3193.4,5.9469433]
[1738226669342,0.6263,3193.6,3193.5,0.62629]
[1738226670142,0.5378,3193.7,3193.6,0.62628]
[1738226670341,1.16406,3193.7,3193.6,0.62628]
[1738226674748,1.16406,3193.7,3193.6,0.50346438]
[1738226675244,0.62628,3193.6,3193.5,1.12048]
[1738226677848,0.5378,3193.7,3193.4,2.7391433]
[1738226678045,0.6263,3193.5,3193.4,3.3654533]
[1738226678245,0.5378,3193.7,3193.3,0.62633]
[1738226678246,0.62634,3193.4,3193.3,0.62633]
[1738226681945,1.56571,3193.6,3193.2,3.21250146]
[1738226682155,0.62634,3193.3,3193.2,0.00470146]
[1738226682946,0.62634,3193.3,3193.2,0.63106146]
[1738226684144,0.62634,3193.3,3193.1,2.11110443]
[1738226684451,1.15766,3193.2,3193.1,2.73747443]
[1738226686246,1.15766,3193.2,3193.1,2.2090384]
[1738226686952,0.5313,3193.2,3193.1,2.2090384]
[1738226687251,1.15766,3193.2,3193.1,2.2090384]
[1738226687753,0.62636,3193.2,3193.1,2.2090384]
[1738226688245,1.5825,3193.7,3193.1,1.5826684]
[1738226688446,1.5825,3193.7,3193.4,3.3654333]
[1738226688645,0.62629,3193.6,3193.5,1.13338]
[1738226688842,0.62629,3193.6,3193.5,1.68168]
[1738226691254,1.15047,3193.7,3193.6,0.62628]
[1738226694150,1.15047,3193.7,3193.6,0.45879166]
[1738226695858,0.62625,3193.8,3193.7,0.62624]
[1738226697356,3.21250146,3193.9,3193.7,2.7391433]
[1738226697557,3.83874146,3193.9,3193.8,0.62624]
[1738226699459,3.83874146,3193.9,3193.7,2.86700402]
[1738226699959,3.83874146,3193.9,3193.8,0.62624]
[1738226702156,3.83874146,3193.9,3193.7,0.39749847]
[1738226702460,1.17078,3193.8,3193.7,0.62626]
[1738226702656,1.17078,3193.8,3193.7,1.92139143]
[1738226704053,1.17078,3193.8,3193.5,1.92141143]
[1738226704257,0.62628,3193.6,3193.5,1.92141143]
[1738226706265,0.62628,3193.6,3193.5,1.62531124]
[1738226709261,0.62628,3193.6,3193.5,1.29513143]
[1738226709657,0.62628,3193.6,3193.5,1.92143143]
[1738226713950,0.62628,3193.6,3193.5,1.29513143]
[1738226714765,0.62632,3193.4,3193.3,1.92147143]
[1738226717063,0.62632,3193.4,3193.3,1.29513143]
[1738226717264,0.62632,3193.4,3193.3,1.92147143]
[1738226717462,0.62632,3193.4,3193.3,1.29513143]
[1738226721666,0.62632,3193.4,3193.3,1.92147143]
[1738226722064,0.62632,3193.4,3193.3,1.29513143]
[1738226722568,0.62632,3193.4,3193.3,1.92147143]
[1738226722770,0.62632,3193.4,3193.3,1.29513143]
[1738226723266,0.62636,3193.2,3193.1,1.29513143]
[1738226723472,0.62636,3193.2,3193.1,0.29009261]
[1738226723776,0.62636,3193.2,3193.1,0.91646261]
[1738226725168,0.62636,3193.2,3193.1,0.29009261]
[1738226725371,0.62639,3193.0,3192.9,1.29513143]
[1738226725668,0.62641,3192.9,3192.8,3.2078]
[1738226725868,1.16371,3192.9,3192.8,3.2078]
[1738226727674,1.16371,3192.9,3192.8,3.83423]
[1738226728463,0.62641,3192.9,3192.8,3.83423]
[1738226728670,0.62641,3192.9,3192.8,4.35223]
[1738226740277,1.5658,3193.4,3193.3,0.6263]
[1738226740278,0.62634,3193.4,3193.3,0.6263]
[1738226740482,0.62629,3193.7,3193.6,0.62626]
[1738226740784,0.62629,3193.7,3193.6,1.78391675]
[1738226741778,0.62629,3193.7,3193.6,1.29513143]
[1738226741986,0.62629,3193.7,3193.6,1.92141143]
[1738226742582,0.62629,3193.7,3193.6,1.29513143]
[1738226743882,3.2078,3193.8,3193.7,0.62626]
[1738226744076,3.83404,3193.8,3193.7,1.64926]
[1738226744383,3.83404,3193.8,3193.7,0.505]
[1738226744887,0.62626,3193.7,3193.6,1.29513143]
[1738226745082,1.14496,3193.7,3193.6,1.29513143]
[1738226745289,1.64006,3193.7,3193.6,1.29513143]
[1738226745588,1.64006,3193.7,3193.4,2.32413143]
[1738226745783,0.6263,3193.5,3193.4,1.29513143]
[1738226745982,0.62634,3193.3,3193.2,1.29513143]
[1738226746685,0.62636,3193.2,3193.1,0.62637]
[1738226748483,0.62636,3193.3,3193.2,0.62634]
[1738226750785,3.2078,3193.4,3193.0,0.5206]
[1738226750990,3.83412,3193.4,3193.3,0.62634]
[1738226751393,3.2078,3193.4,3193.3,1.70474]
[1738226754684,1.16175,3193.8,3193.7,0.62626]
[1738226755094,3.2078,3194.0,3193.8,0.62624]
[1738226755398,0.62615,3194.3,3193.8,3.36298281]
[1738226755586,0.62617,3194.2,3193.8,3.89778281]
[1738226755787,0.62617,3194.2,3193.8,4.42708281]
[1738226757295,0.62618,3194.1,3193.8,4.42708281]
[1738226757491,0.5355,3194.4,3193.8,4.42708281]
[1738226757695,0.62617,3194.2,3193.8,4.42708281]
[1738226758097,0.5355,3194.4,3193.8,4.42708281]
[1738226758402,4.77288,3194.9,3194.6,0.62607]
[1738226758403,0.62608,3194.7,3194.6,0.62607]
[1738226758598,0.5199,3194.8,3194.7,0.62606]
[1738226758599,1.68765,3194.8,3194.7,0.62606]
[1738226758893,1.0616,3194.8,3194.5,2.73674281]
[1738226759097,0.62608,3194.6,3194.5,3.36284281]
[1738226761800,0.62608,3194.6,3194.5,2.73674281]
[1738226761999,0.62608,3194.6,3194.5,3.36284281]
[1738226764094,0.62608,3194.6,3194.5,2.73674281]
[1738226767302,1.0616,3194.8,3194.5,2.73674281]
[1738226767503,1.68765,3194.8,3194.7,0.62606]
[1738226767699,1.16775,3194.8,3194.7,0.62606]
[1738226767905,0.62608,3194.7,3194.6,0.62607]
[1738226768505,0.62608,3194.7,3194.6,1.92023702]
[1738226770001,0.62608,3194.7,3194.6,1.29416702]
[1738226770307,0.62608,3194.7,3194.6,1.92024702]
[1738226776715,0.62608,3194.7,3194.6,1.29416702]
[1738226777717,0.62608,3194.7,3194.6,1.92024702]
[1738226781116,1.16776,3194.8,3194.7,0.62606]
[1738226781511,0.5417,3194.8,3194.7,0.62606]
[1738226782116,0.62603,3194.9,3194.6,1.29416702]
[1738226782311,0.62603,3194.9,3194.8,1.92020702]
[1738226782507,0.00470146,3195.0,3194.8,2.58833404]
[1738226782711,0.511,3195.4,3194.9,0.62602]
[1738226782916,0.511,3195.4,3195.3,1.92010702]
[1738226783417,0.511,3195.4,3195.3,2.43580702]
[1738226784117,0.62592,3195.5,3195.3,1.80986702]
[1738226784418,0.6259,3195.6,3195.5,0.6259]
[1738226784616,0.6259,3195.6,3195.5,1.92006702]
[1738226784816,0.63057146,3195.7,3195.6,0.62589]
[1738226786615,0.63057146,3195.7,3195.6,1.14699]
[1738226786807,0.63057146,3195.7,3195.6,0.62589]
[1738226787112,0.00470146,3195.7,3195.6,0.62589]
[1738226787911,0.00470146,3195.7,3195.6,3.83369]
[1738226788623,0.00470146,3195.7,3195.6,6.56529985]
[1738226789118,0.62578,3196.2,3196.1,0.62579]
[1738226789315,0.62578,3196.2,3196.1,3.21141348]
[1738226789919,0.62576,3196.3,3196.2,0.62575]
[1738226792019,3.2078,3196.4,3196.1,2.73160985]
[1738226792222,0.62577,3196.2,3196.1,3.35737985]
[1738226793221,3.2078,3196.4,3196.1,2.73160985]
[1738226793419,0.62576,3196.3,3196.2,0.62575]
[1738226793926,3.83354,3196.4,3196.3,0.62575]
[1738226795018,0.62574,3196.4,3196.3,0.62575]
[1738226795213,3.2078,3197.4,3196.3,5.93940985]
[1738226795418,3.2078,3197.4,3196.1,2.73160985]
[1738226795419,0.5205,3197.4,3197.3,3.35715985]
[1738226796127,0.5348,3197.6,3197.5,0.62551]
[1738226796326,0.62547,3197.7,3197.6,0.62549]
[1738226796631,0.00469403,3197.7,3197.6,3.35709985]
[1738226797020,0.63016403,3197.7,3197.6,3.35709985]
[1738226797217,0.00469403,3197.7,3197.6,3.35709985]
[1738226797919,0.63016403,3197.7,3197.6,3.35709985]
[1738226798115,1.68526403,3197.7,3197.6,3.35709985]
[1738226798316,1.68526403,3197.7,3197.6,2.73160985]
[1738226800422,0.62553,3197.4,3197.3,2.73160985]
[1738226802525,1.05979403,3197.7,3197.0,2.73160985]
[1738226802726,0.62559,3197.1,3197.0,2.73160985]
[1738226807830,0.5199,3197.3,3196.7,0.62566]
[1738226807831,0.62563,3196.9,3196.7,2.73160985]
[1738226808135,0.62565,3196.8,3196.7,2.73160985]
[1738226810030,0.62565,3196.8,3196.7,3.35727985]
[1738226810431,1.15693,3197.0,3196.9,0.62563]
[1738226811034,1.15693,3197.0,3196.8,1.0659]
[1738226811035,3.2078,3197.2,3196.8,1.0659]
[1738226811231,3.2078,3197.2,3197.1,3.35719985]
[1738226813037,3.83337,3197.2,3197.1,3.35719985]
[1738226813428,3.83337,3197.2,3197.1,2.73160985]
[1738226813632,3.83337,3197.2,3197.1,3.35719985]
[1738226814635,3.2078,3197.2,3197.1,3.35719985]
[1738226815037,0.5239,3197.6,3197.1,3.35719985]
[1738226815230,0.62552,3197.6,3197.5,3.35711985]
[1738226817940,1.15822,3197.6,3197.5,3.35711985]
[1738226818141,0.62552,3197.6,3197.5,3.35711985]
[1738226819440,0.00469403,3197.7,3197.5,2.73160985]
[1738226819738,0.00469403,3197.7,3197.6,1.16969]
[1738226819943,0.63016403,3197.7,3197.6,1.16969]
[1738226820638,0.00469403,3197.7,3197.5,2.73160985]
[1738226820844,0.62549,3197.6,3197.5,3.35709985]
[1738226823143,3.2078,3199.6,3197.5,18.4140197]
[1738226823444,3.8329,3199.6,3199.5,2.73160985]
[1738226824045,3.2078,3199.6,3199.5,2.73160985]
[1738226824243,3.2078,3199.6,3199.5,3.35672985]
[1738226824639,3.2078,3199.6,3199.5,2.73160985]
[1738226825040,3.8329,3199.6,3199.5,2.73160985]
[1738226825251,3.2078,3199.6,3199.5,3.35672985]
[1738226826440,1.0272,3199.8,3199.7,46.7922]
[1738226826648,1.65226,3199.8,3199.7,46.7922]
[1738226827038,1.65226,3199.8,3199.7,44.64175053]
[1738226827335,1.65226,3199.8,3199.7,45.26683053]
[1738226828140,1.0272,3199.8,3199.7,45.26683053]
[1738226828443,0.5083,3199.8,3199.7,45.26683053]
[1738226830843,1.13336,3199.8,3199.7,44.64175053]
[1738226832151,0.00469403,3199.9,3199.8,0.62506]
[1738226832351,0.62483,3201.1,3200.9,0.62484]
[1738226832649,0.5207,3201.2,3201.0,2.73160985]
[1738226832852,1.1455,3201.2,3201.0,3.35641985]
[1738226833048,0.5207,3201.2,3201.0,2.73160985]
[1738226833244,0.5207,3201.2,3201.0,5.93940985]
[1738226833546,0.62481,3201.1,3201.0,6.56422985]
[1738226833741,0.62481,3201.1,3201.0,5.93940985]
[1738226835058,0.5207,3201.2,3201.0,5.93940985]
[1738226835254,1.14549,3201.2,3201.1,0.62481]
[1738226835754,1.14549,3201.2,3201.0,6.56422985]
[1738226835951,1.14549,3201.2,3201.0,5.93940985]
[1738226836257,1.14549,3201.2,3201.0,6.56422985]
[1738226836558,0.53978041,3201.4,3201.0,5.93940985]
[1738226836748,0.62477,3201.3,3201.2,0.62478]
[1738226836950,0.62481,3201.1,3201.0,3.2078]
[1738226837343,0.62481,3201.1,3201.0,3.83263]
[1738226837547,0.62481,3201.1,3201.0,3.2078]
[1738226842553,0.62481,3201.1,3201.0,3.83261]
[1738226842753,0.62481,3201.1,3201.0,3.2078]
[1738226843256,0.00308041,3201.4,3201.0,3.2078]
[1738226843559,3.2078,3202.7,3201.4,1.56189]
[1738226843761,3.2078,3202.7,3201.1,1.0738]
[1738226843762,0.6245,3202.7,3202.6,2.73160985]
[1738226846454,0.6245,3202.7,3202.6,3.35610985]
[1738226846661,0.6245,3202.7,3202.6,2.73160985]
[1738226847957,2.73160985,3204.0,3203.7,21.47445238]
[1738226848161,4.95408,3203.8,3203.7,17.26971116]
[1738226848463,4.95408,3203.8,3203.7,15.28367116]
[1738226848663,9.95408,3203.8,3203.7,15.28367116]
[1738226848849,9.95408,3203.8,3203.7,13.66346116]
[1738226849053,9.95408,3203.8,3203.7,10.98463281]
[1738226849263,9.95408,3203.8,3203.7,10.07351281]
[1738226849562,15.15608,3203.8,3203.7,6.23441089]
[1738226849763,15.15608,3203.8,3203.7,0.72281089]
[1738226850061,0.62434,3203.5,3203.4,6.04e-06]
[1738226850263,3.35594985,3203.5,3203.4,6.04e-06]
[1738226850464,5.62434,3203.5,3203.4,6.04e-06]
[1738226850853,0.24588584,3204.1,3203.4,6.32476515]
[1738226851061,3.2078,3204.5,3204.0,5.84856896]
[1738226851363,0.00468,3204.1,3204.0,3.35585985]
[1738226851756,0.00468,3204.1,3204.0,6.47281896]
[1738226852168,3.2078,3205.5,3205.0,0.62405]
[1738226852363,3.2078,3206.0,3204.9,2.73160985]
[1738226852559,0.24706306,3206.3,3204.3,6.94893911]
[1738226852560,0.6241,3204.8,3204.3,6.94893911]
[1738226852760,3.2078,3205.0,3204.3,6.32475911]
[1738226853061,0.5076,3204.7,3204.3,6.32475911]
[1738226853566,0.5076,3204.7,3204.4,3.74112911]
[1738226853755,0.5076,3204.7,3204.6,3.11695911]
[1738226854661,0.5076,3204.7,3204.3,3.2078]
[1738226854862,0.62417,3204.4,3204.3,3.11695911]
[1738226855266,0.62417,3204.5,3204.3,6.32475911]
[1738226855456,0.62417,3204.4,3204.3,6.32475911]
[1738226855856,0.62419,3204.3,3204.2,0.00468604]
[1738226856059,0.62419,3204.3,3204.2,3.12164515]
[1738226856260,0.62418,3204.4,3204.2,3.12164515]
[1738226856764,0.5076,3204.7,3204.2,3.12164515]
[1738226856957,0.62419,3204.3,3204.2,3.12164515]
[1738226857160,0.62419,3204.3,3204.2,0.00468604]
[1738226858860,5.62419,3204.3,3204.2,0.00468604]
[1738226859871,5.0,3204.3,3203.4,3.2078]
[1738226860069,0.62434,3203.6,3203.4,3.2078]
[1738226860275,0.62427,3203.9,3203.7,3.74124911]
[1738226860477,0.62427,3203.9,3203.8,3.11695911]
[1738226861570,0.62425,3204.0,3203.6,0.62431]
[1738226861771,0.62428,3203.8,3203.7,3.11695911]
[1738226862572,1.209,3204.1,3203.7,3.11695911]
[1738226862881,0.62428,3203.8,3203.7,3.11695911]
[1738226863489,0.62432,3203.6,3203.5,0.00468604]
[1738226864373,0.62432,3203.6,3203.5,0.62902604]
[1738226864883,0.62432,3203.6,3203.5,0.00468604]
[1738226866980,0.5387,3203.9,3203.8,49.37568]
[1738226867165,1.16296,3203.9,3203.8,49.37568]
[1738226867675,6.16296,3203.9,3203.8,49.37568]
[1738226867871,1.16296,3203.9,3203.8,49.37568]
[1738226868370,6.16296,3203.9,3203.8,49.37568]
[1738226870973,0.00468604,3204.2,3204.1,0.62423]
[1738226871182,0.00468604,3204.2,3204.1,3.74118911]
[1738226873068,0.00468604,3204.2,3204.1,0.62423]
[1738226874578,0.62423,3204.1,3204.0,0.62423]
[1738226874783,0.62425,3204.0,3203.9,0.5168]
[1738226874984,0.62426,3203.9,3203.8,49.99995]
[1738226875873,0.62426,3203.9,3203.8,49.37568]
[1738226879280,5.62426,3203.9,3203.8,49.37568]
[1738226879480,5.62426,3203.9,3203.8,44.68888241]
[1738226879685,1.82426,3203.9,3203.8,44.68888241]
[1738226880477,1.82426,3203.9,3203.8,42.1503483]
[1738226881773,0.62426,3203.9,3203.8,42.1503483]
[1738226881977,1.82626,3203.9,3203.8,42.1503483]
[1738226882383,1.82626,3203.9,3203.8,40.11945625]
[1738226883188,1.82626,3203.9,3203.8,37.19019833]
[1738226885380,1.82626,3203.9,3203.8,34.65164179]
[1738226885581,0.62426,3203.9,3203.8,34.65164179]
[1738226886884,5.62426,3203.9,3203.8,34.65164179]
[1738226887189,6.15066,3203.9,3203.8,32.41361276]
[1738226887691,1.15066,3203.9,3203.8,30.26521318]
[1738226887988,6.15066,3203.9,3203.8,29.76811318]
[1738226888189,6.15066,3203.9,3203.8,27.11909549]
[1738226888586,11.35266,3203.9,3203.8,27.11909549]
[1738226888786,11.35266,3203.9,3203.8,26.23696549]
[1738226888982,11.35266,3203.9,3203.8,17.70574019]
[1738226889183,11.35266,3203.9,3203.8,16.45985019]
[1738226889378,11.35266,3203.9,3203.8,16.35995019]
[1738226890792,0.00468604,3204.2,3203.8,22.6847093]
[1738226890991,3.2078,3205.0,3204.6,0.62411]
[1738226891188,0.62401,3205.2,3204.7,0.5057]
[1738226891386,3.24947525,3205.5,3205.0,3.11695911]
[1738226891690,0.62395,3205.5,3205.1,0.62402]
[1738226892187,4.4188,3205.6,3204.7,3.7135]
[1738226892381,3.2078,3205.6,3205.1,3.11695911]
[1738226892586,3.2078,3205.6,3205.4,0.62396]
[1738226892788,3.2078,3205.6,3205.4,0.62397]
[1738226893189,3.2078,3205.6,3205.2,0.52408604]
[1738226893497,0.62399,3205.3,3205.2,0.00468604]
[1738226893792,3.2078,3205.6,3205.2,0.00468604]
[1738226893996,0.62399,3205.3,3205.2,0.00468604]
[1738226895687,0.62399,3205.3,3205.2,0.00377554]
[1738226896394,0.62399,3205.3,3205.2,0.00297554]
[1738226898386,1.82999,3205.3,3205.2,0.00297554]
[1738226899895,6.83899,3205.3,3205.2,0.00217554]
[1738226900095,0.62399,3205.3,3205.2,0.00217554]
[1738226900393,1.84299,3205.3,3205.2,0.00217554]
[1738226900598,0.62399,3205.3,3205.2,0.00217554]
[1738226902093,0.62399,3205.3,3205.2,0.00137554]
[1738226902795,1.56013,3205.1,3204.3,3.69272289]
[1738226902992,0.62413,3204.6,3204.5,3.11695911]
[1738226903298,3.2078,3204.7,3204.3,3.69272289]
[1738226903299,0.62415,3204.5,3204.4,3.11695911]
[1738226903692,3.2078,3204.7,3204.3,3.15972289]
[1738226903889,0.62417,3204.4,3204.3,4.12904105]
[1738226905599,0.62417,3204.4,3204.3,0.96931816]
[1738226905800,1.217,3204.5,3204.1,0.00468604]
[1738226905995,2.7774,3204.5,3204.1,0.00468604]
[1738226906200,0.62421,3204.2,3204.1,0.00468604]
[1738226908901,3.83201,3204.2,3204.1,0.00468604]
[1738226909089,3.83201,3204.2,3203.9,16.35995019]
[1738226909294,3.2078,3204.2,3203.9,15.37671077]
[1738226909495,0.62425,3204.0,3203.9,15.37671077]
[1738226910201,3.2078,3204.2,3203.9,15.37671077]
[1738226910390,0.62424,3204.1,3203.9,15.37671077]
[1738226910591,3.2078,3204.2,3203.9,15.37671077]
[1738226910793,0.62425,3204.0,3203.9,15.37671077]
[1738226910994,3.2078,3204.2,3203.9,15.37671077]
[1738226911189,0.62425,3204.0,3203.9,15.37671077]
[1738226914505,0.62425,3204.0,3203.9,12.26458282]
[1738226914701,5.82625,3204.0,3203.9,12.26458282]
[1738226914912,10.82625,3204.0,3203.9,11.76458282]
[1738226915296,10.82625,3204.0,3203.9,9.68809474]
[1738226915707,5.82625,3204.0,3203.9,9.18929474]
[1738226915905,10.82625,3204.0,3203.9,9.18929474]
[1738226916703,8.54586989,3204.0,3203.9,9.18929474]
[1738226916904,13.54586989,3204.0,3203.9,9.18929474]
[1738226917094,13.54586989,3204.0,3203.9,8.27036527]
[1738226918202,13.54586989,3204.0,3203.9,7.66836527]
[1738226918603,13.54586989,3204.0,3203.9,5.36856527]
[1738226918908,13.54586989,3204.0,3203.9,2.02658875]
[1738226920808,13.54586989,3204.0,3203.9,1.21553074]
[1738226921206,13.54586989,3204.0,3203.9,0.71703074]
[1738226921710,13.54586989,3204.0,3203.9,0.64485907]
[1738226923004,0.62425,3204.0,3203.9,1.61417723]
[1738226927204,1.85125,3204.0,3203.9,1.61417723]
[1738226927612,1.85125,3204.0,3203.9,0.64485907]
[1738226930310,1.85125,3204.0,3203.9,1.61417723]
[1738226931617,2.17733416,3204.0,3203.9,1.61417723]
[1738226932405,2.17233416,3204.0,3203.9,1.61417723]
[1738226933313,2.17233416,3204.0,3203.9,1.23883319]
[1738226934713,2.17233416,3204.0,3203.7,0.5204]
[1738226934714,1.54808416,3204.0,3203.7,0.5204]
[1738226934915,0.62426,3203.9,3203.8,0.53569787]
[1738226935114,1.54808416,3204.0,3203.7,0.5204]
[1738226935416,3.83208,3203.8,3203.7,0.5204]
[1738226936117,3.83208,3203.8,3203.7,1.05609787]
[1738226940915,3.83208,3203.8,3203.7,0.95048809]
[1738226941421,3.83208,3203.8,3203.7,0.83803348]
[1738226942020,3.83208,3203.8,3203.7,0.03709787]
[1738226942218,0.6243,3203.7,3203.6,0.00468604]
[1738226942415,3.0112,3203.8,3203.6,0.00468604]
[1738226942618,3.04570405,3204.0,3203.7,5.92741989]
[1738226942619,0.00468604,3204.0,3203.7,5.92741989]
[1738226942815,0.62416,3204.5,3203.9,0.62426]
[1738226943017,0.62416,3204.5,3204.1,3.2078]
[1738226943413,5.6791,3205.0,3204.1,3.2078]
[1738226943624,5.6791,3205.0,3204.5,3.2078]
[1738226943915,0.62409,3204.8,3204.5,3.2078]
[1738226945218,5.185,3205.0,3204.5,3.2078]
[1738226945419,0.00468604,3205.1,3204.9,3.2078]
[1738226945713,0.00468604,3205.1,3205.0,0.62405]
[1738226945920,0.00468604,3205.1,3205.0,0.77145]
[1738226946818,3.2078,3205.9,3205.0,0.1474]
[1738226947020,3.2078,3205.9,3205.4,3.2078]
[1738226947521,1.215,3205.8,3205.4,3.2078]
[1738226947719,1.8389,3205.8,3205.4,3.2078]
[1738226948221,1.8379,3205.8,3205.4,3.2078]
[1738226948524,0.62393,3205.7,3205.4,3.2078]
[1738226948719,0.62395,3205.5,3205.4,3.2078]
[1738226949420,1.13635,3205.5,3205.4,3.2078]
[1738226949623,0.5124,3205.5,3205.3,0.00468604]
[1738226949812,0.62397,3205.4,3205.3,0.00468604]
[1738226950016,1.83397,3205.4,3205.3,0.00468604]
[1738226952621,1.82897,3205.4,3205.3,0.00468604]
[1738226953431,0.62397,3205.4,3205.3,0.00468604]
[1738226953632,1.82597,3205.4,3205.3,0.00468604]
[1738226953926,0.62397,3205.4,3205.3,0.00468604]
[1738226954122,1.82497,3205.4,3205.3,0.00468604]
[1738226954431,1.82497,3205.4,3205.3,0.00388604]
[1738226955125,1.82497,3205.4,3205.3,0.00308604]
[1738226955322,7.00997,3205.4,3205.3,0.00308604]
[1738226955726,0.62397,3205.4,3205.3,0.00308604]
[1738226956128,1.82097,3205.4,3205.3,0.00308604]
[1738226956628,0.62397,3205.4,3205.3,0.00308604]
[1738226957029,4.53958989,3205.4,3205.3,0.00308604]
[1738226957725,0.62405,3205.0,3204.9,3.2078]
[1738226958234,0.87699365,3205.0,3204.9,3.2078]
[1738226958424,1.11645,3205.0,3204.9,3.2078]
[1738226959233,0.4924,3205.0,3204.6,0.00468604]
[1738226959421,5.92741989,3204.8,3204.1,3.2078]
[1738226959621,5.92741989,3204.8,3203.9,0.2406]
[1738226959622,0.62421,3204.2,3203.9,0.2406]
[1738226960127,3.89111449,3218.1,3205.5,22.56663364]
[1738226960324,5.02573,3205.6,3205.5,0.7609272]
[1738226960633,0.62418,3204.4,3204.1,3.2078]
[1738226960829,1.81716,3204.5,3204.1,3.2078]
[1738226961331,1.193,3204.5,3204.1,3.51123001]
[1738226961726,4.3727,3204.8,3204.3,0.62418]
[1738226962033,1.192,3204.7,3204.2,2.71961989]
[1738226962432,1.192,3204.7,3204.4,0.62417]
[1738226962631,3.2078,3204.8,3204.2,2.71961989]
[1738226962824,0.24419568,3205.2,3204.5,3.2078]
[1738226962825,1.19,3204.9,3204.5,3.2078]
[1738226963438,1.19,3204.9,3204.6,1.14452]
[1738226963929,1.19,3204.9,3204.6,0.5204]
[1738226964130,0.62404,3205.1,3204.7,0.62411]
[1738226964335,0.5408,3205.2,3204.9,3.2078]
[1738226964534,0.62404,3205.1,3204.9,3.2078]
[1738226964832,0.5408,3205.2,3204.9,3.2078]
[1738226965324,0.5408,3205.2,3205.0,0.62404]
[1738226965523,0.0016,3205.7,3204.9,3.2078]
[1738226965724,0.62395,3205.5,3205.4,3.2078]
[1738226966827,0.62406,3205.0,3204.8,3.2078]
[1738226967135,0.4931,3204.9,3204.8,3.2078]